[Event "Early-Titled-Tuesday-Blitz-May-07-2024"]
[Site "Chess.com"]
[Date "2024.05.07"]
[Round "2"]
[White "vedantgoswami"]
[Black "Nf3c5"]
[Result "0-1"]
[WhiteElo "2375"]
[BlackElo "2601"]
[TimeControl "180+1"]
[EndTime "8:19:54 PDT"]
[Termination "Nf3c5 won by resignation"]

1. c4 {[%clk 0:03:00.9]} 1... c5 {[%clk 0:02:53.5]} 2. Nc3 {[%clk 0:02:59.3]}
2... Nc6 {[%clk 0:02:50.8]} 3. g3 {[%clk 0:02:57.8]} 3... g6 {[%clk 0:02:51]} 4.
Bg2 {[%clk 0:02:57.2]} 4... Bg7 {[%clk 0:02:50.5]} 5. Rb1 {[%clk 0:02:57.1]}
5... d6 {[%clk 0:02:49.4]} 6. a3 {[%clk 0:02:56.9]} 6... a5 {[%clk 0:02:49]} 7.
d3 {[%clk 0:02:52.8]} 7... e5 {[%clk 0:02:39.8]} 8. Nf3 {[%clk 0:02:44.3]} 8...
Nge7 {[%clk 0:02:34]} 9. h4 {[%clk 0:02:39.7]} 9... h6 {[%clk 0:02:27.4]} 10.
Bd2 {[%clk 0:02:31.5]} 10... Be6 {[%clk 0:02:24.1]} 11. Qc1 {[%clk 0:01:57.6]}
11... Rc8 {[%clk 0:02:16.7]} 12. e4 {[%clk 0:01:53]} 12... Bg4 {[%clk
0:02:13.6]} 13. Be3 {[%clk 0:01:47.3]} 13... f5 {[%clk 0:02:00.4]} 14. Nh2
{[%clk 0:01:42.9]} 14... Bh5 {[%clk 0:01:57.7]} 15. O-O {[%clk 0:01:19.5]} 15...
f4 {[%clk 0:00:46.3]} 16. gxf4 {[%clk 0:01:07.1]} 16... exf4 {[%clk 0:00:45]}
17. Bxf4 {[%clk 0:01:06.5]} 17... Ne5 {[%clk 0:00:42]} 18. Qe3 {[%clk
0:00:58.1]} 18... g5 {[%clk 0:00:34]} 19. hxg5 {[%clk 0:00:51.2]} 19... N7g6
{[%clk 0:00:34.5]} 20. Bg3 {[%clk 0:00:43.1]} 20... hxg5 {[%clk 0:00:32.3]} 21.
Nd5 {[%clk 0:00:41.6]} 21... O-O {[%clk 0:00:29.2]} 22. f4 {[%clk 0:00:24.6]}
22... gxf4 {[%clk 0:00:28.6]} 23. Nxf4 {[%clk 0:00:23.8]} 23... Bh6 {[%clk
0:00:26.4]} 24. Bh3 {[%clk 0:00:08.8]} 24... Nxf4 {[%clk 0:00:18.6]} 25. Bxf4
{[%clk 0:00:08.7]} 25... Rxf4 {[%clk 0:00:16.8]} 26. Rf2 {[%clk 0:00:07.6]}
26... Rf6 {[%clk 0:00:11.7]} 27. Qg3+ {[%clk 0:00:06.3]} 27... Kh7 {[%clk
0:00:11.6]} 28. Bf5+ {[%clk 0:00:03.1]} 28... Bg6 {[%clk 0:00:09.3]} 29. Qh4
{[%clk 0:00:02.6]} 29... Bxf5 {[%clk 0:00:08.8]} 30. Rxf5 {[%clk 0:00:02.3]}
30... Rxf5 {[%clk 0:00:08.9]} 31. exf5 {[%clk 0:00:02.4]} 31... Qxh4 {[%clk
0:00:08.3]} 0-1

[Event "Early-Titled-Tuesday-Blitz-May-07-2024"]
[Site "Chess.com"]
[Date "2024.05.07"]
[Round "2"]
[White "LeoWin2012"]
[Black "MathiasWomacka"]
[Result "0-1"]
[WhiteElo "2308"]
[BlackElo "2523"]
[TimeControl "180+1"]
[EndTime "8:19:55 PDT"]
[Termination "MathiasWomacka won by checkmate"]

1. e4 {[%clk 0:03:00.9]} 1... c5 {[%clk 0:02:59.6]} 2. Nf3 {[%clk 0:02:59.5]}
2... d6 {[%clk 0:02:59.7]} 3. c3 {[%clk 0:02:54.2]} 3... Nf6 {[%clk 0:02:58.7]}
4. h3 {[%clk 0:02:53.7]} 4... g6 {[%clk 0:02:54.9]} 5. Bd3 {[%clk 0:02:52.5]}
5... Bg7 {[%clk 0:02:54.1]} 6. Bc2 {[%clk 0:02:52.3]} 6... e5 {[%clk 0:02:49.5]}
7. O-O {[%clk 0:02:51.1]} 7... O-O {[%clk 0:02:49.1]} 8. d4 {[%clk 0:02:50.4]}
8... exd4 {[%clk 0:02:46.5]} 9. cxd4 {[%clk 0:02:50.2]} 9... Nc6 {[%clk
0:02:47.1]} 10. Be3 {[%clk 0:02:33.4]} 10... Nb4 {[%clk 0:02:39.4]} 11. dxc5
{[%clk 0:02:27.5]} 11... Nxc2 {[%clk 0:02:35.9]} 12. Qxc2 {[%clk 0:02:25.6]}
12... dxc5 {[%clk 0:02:34.4]} 13. Bxc5 {[%clk 0:02:11.7]} 13... Re8 {[%clk
0:02:32.9]} 14. Nc3 {[%clk 0:02:08.6]} 14... Be6 {[%clk 0:02:31.3]} 15. Rad1
{[%clk 0:02:04.9]} 15... Qa5 {[%clk 0:02:26]} 16. Bd4 {[%clk 0:02:01.5]} 16...
Rac8 {[%clk 0:02:21.6]} 17. Rfe1 {[%clk 0:01:26.6]} 17... Qxa2 {[%clk 0:02:07]}
18. Ra1 {[%clk 0:01:19.3]} 18... Qc4 {[%clk 0:02:02]} 19. Rxa7 {[%clk 0:01:15]}
19... b5 {[%clk 0:02:01.3]} 20. Qd2 {[%clk 0:00:32.1]} 20... b4 {[%clk
0:01:52.2]} 21. Bxf6 {[%clk 0:00:25.3]} 21... Bxf6 {[%clk 0:01:43.4]} 22. Nd5
{[%clk 0:00:24.9]} 22... Bxd5 {[%clk 0:01:40.5]} 23. exd5 {[%clk 0:00:20.5]}
23... Rxe1+ {[%clk 0:01:39.2]} 24. Nxe1 {[%clk 0:00:21.4]} 24... Qd4 {[%clk
0:01:17.7]} 25. Qxd4 {[%clk 0:00:05.8]} 25... Bxd4 {[%clk 0:01:18.6]} 26. Rb7
{[%clk 0:00:05.7]} 26... Rc1 {[%clk 0:01:09.1]} 27. Kf1 {[%clk 0:00:05.7]} 27...
Bxb2 {[%clk 0:01:09.6]} 28. Rxb4 {[%clk 0:00:02.1]} 28... Rxe1+ {[%clk
0:01:06.3]} 29. Kxe1 {[%clk 0:00:03]} 29... Bc3+ {[%clk 0:01:06.1]} 30. Ke2
{[%clk 0:00:03.9]} 30... Bxb4 {[%clk 0:01:06.5]} 31. Kd3 {[%clk 0:00:04.2]}
31... Kf8 {[%clk 0:01:05.3]} 32. Kc4 {[%clk 0:00:04.6]} 32... Be1 {[%clk
0:01:04.6]} 33. f3 {[%clk 0:00:04.2]} 33... Ke7 {[%clk 0:01:05.1]} 34. Kd4
{[%clk 0:00:04.2]} 34... Kd6 {[%clk 0:01:04]} 35. g4 {[%clk 0:00:04.7]} 35... f5
{[%clk 0:00:59.8]} 36. gxf5 {[%clk 0:00:04.5]} 36... gxf5 {[%clk 0:01:00.5]} 37.
f4 {[%clk 0:00:03.8]} 37... Bg3 {[%clk 0:00:59.1]} 38. Kc4 {[%clk 0:00:03.3]}
38... Bxf4 {[%clk 0:00:58.4]} 39. Kd4 {[%clk 0:00:04.2]} 39... Be5+ {[%clk
0:00:58.5]} 40. Kd3 {[%clk 0:00:04.2]} 40... Kxd5 {[%clk 0:00:56.9]} 41. Ke3
{[%clk 0:00:05.1]} 41... f4+ {[%clk 0:00:54.1]} 42. Kf3 {[%clk 0:00:06]} 42...
Kd4 {[%clk 0:00:53.8]} 43. h4 {[%clk 0:00:06.1]} 43... h5 {[%clk 0:00:52.9]} 44.
Kf2 {[%clk 0:00:06.1]} 44... Ke4 {[%clk 0:00:52.8]} 45. Kg2 {[%clk 0:00:06.4]}
45... Ke3 {[%clk 0:00:51.1]} 46. Kf1 {[%clk 0:00:06.7]} 46... f3 {[%clk
0:00:50.3]} 47. Ke1 {[%clk 0:00:07.1]} 47... Bc3+ {[%clk 0:00:47.8]} 48. Kf1
{[%clk 0:00:08]} 48... f2 {[%clk 0:00:47.5]} 49. Kg2 {[%clk 0:00:07.5]} 49...
Ke2 {[%clk 0:00:47.4]} 50. Kh2 {[%clk 0:00:06.9]} 50... f1=Q {[%clk 0:00:46.1]}
51. Kg3 {[%clk 0:00:07.5]} 51... Be5# {[%clk 0:00:44.9]} 0-1

[Event "Early-Titled-Tuesday-Blitz-May-07-2024"]
[Site "Chess.com"]
[Date "2024.05.07"]
[Round "2"]
[White "Anu-triz"]
[Black "Ivan11Martic"]
[Result "0-1"]
[WhiteElo "2314"]
[BlackElo "2607"]
[TimeControl "180+1"]
[EndTime "8:19:58 PDT"]
[Termination "Ivan11Martic won by resignation"]

1. e4 {[%clk 0:03:00.9]} 1... c5 {[%clk 0:02:58.6]} 2. Nf3 {[%clk 0:02:56.4]}
2... e6 {[%clk 0:02:58.2]} 3. c4 {[%clk 0:02:52]} 3... Nc6 {[%clk 0:02:57.3]} 4.
d4 {[%clk 0:02:48.2]} 4... cxd4 {[%clk 0:02:54.7]} 5. Nxd4 {[%clk 0:02:49.1]}
5... Nf6 {[%clk 0:02:54]} 6. Nc3 {[%clk 0:02:46.8]} 6... Bb4 {[%clk 0:02:53.8]}
7. Nxc6 {[%clk 0:02:40.9]} 7... bxc6 {[%clk 0:02:52.8]} 8. Bd3 {[%clk
0:02:41.4]} 8... e5 {[%clk 0:02:50.1]} 9. O-O {[%clk 0:02:39.3]} 9... Bc5 {[%clk
0:02:49.8]} 10. Kh1 {[%clk 0:02:38.5]} 10... d6 {[%clk 0:02:40.1]} 11. f4 {[%clk
0:02:36.3]} 11... Ng4 {[%clk 0:02:37.6]} 12. Qe1 {[%clk 0:02:28.6]} 12... h5
{[%clk 0:02:27.6]} 13. f5 {[%clk 0:02:20.7]} 13... h4 {[%clk 0:02:19.5]} 14. Qe2
{[%clk 0:02:19.3]} 14... Nf6 {[%clk 0:02:15]} 15. Bg5 {[%clk 0:02:18.5]} 15...
Nh5 {[%clk 0:02:11.8]} 16. Qxh5 {[%clk 0:02:01.4]} 16... Rxh5 {[%clk 0:02:12.7]}
17. Bxd8 {[%clk 0:02:01.3]} 17... Kxd8 {[%clk 0:02:12.3]} 18. Rad1 {[%clk
0:01:52.1]} 18... Ke7 {[%clk 0:02:11]} 19. a3 {[%clk 0:01:47.5]} 19... h3 {[%clk
0:02:09.7]} 20. b4 {[%clk 0:01:41.2]} 20... hxg2+ {[%clk 0:02:06.6]} 21. Kxg2
{[%clk 0:01:42.1]} 21... Be3 {[%clk 0:02:04.6]} 22. Ne2 {[%clk 0:01:36.7]} 22...
a5 {[%clk 0:01:56.5]} 23. Rf3 {[%clk 0:01:35.7]} 23... Bb6 {[%clk 0:01:51.4]}
24. b5 {[%clk 0:01:22.7]} 24... Bb7 {[%clk 0:01:44.3]} 25. a4 {[%clk 0:01:18.2]}
25... cxb5 {[%clk 0:01:39]} 26. cxb5 {[%clk 0:01:15.1]} 26... d5 {[%clk
0:01:38.4]} 27. Nc3 {[%clk 0:01:13.6]} 27... d4 {[%clk 0:01:14.7]} 28. Nd5+
{[%clk 0:01:13.5]} 28... Bxd5 {[%clk 0:01:14.3]} 29. exd5 {[%clk 0:01:14.4]}
29... Rc8 {[%clk 0:01:14]} 30. Be4 {[%clk 0:01:06.9]} 30... Kd6 {[%clk
0:01:07.5]} 31. Rg3 {[%clk 0:01:04.7]} 31... Rh4 {[%clk 0:01:02.4]} 32. Re1
{[%clk 0:01:04.1]} 32... Rch8 {[%clk 0:00:57.4]} 33. h3 {[%clk 0:01:03.2]} 33...
d3 {[%clk 0:00:52.3]} 34. Rxd3 {[%clk 0:00:59]} 34... Rf4 {[%clk 0:00:48.4]} 35.
Rf3 {[%clk 0:00:57.4]} 35... Rhh4 {[%clk 0:00:47.2]} 36. Kg3 {[%clk 0:00:48.6]}
36... Rxe4 {[%clk 0:00:42.7]} 37. Rc1 {[%clk 0:00:48.3]} 37... Kxd5 {[%clk
0:00:31.2]} 38. Rc6 {[%clk 0:00:46.5]} 38... Bd8 {[%clk 0:00:23.1]} 39. Rc8
{[%clk 0:00:40.8]} 39... Bg5 {[%clk 0:00:20.3]} 40. b6 {[%clk 0:00:40.4]} 40...
Rb4 {[%clk 0:00:18.4]} 41. Rd3+ {[%clk 0:00:38.9]} 41... Rhd4 {[%clk 0:00:17.5]}
42. Rdc3 {[%clk 0:00:35.1]} 42... Rxb6 {[%clk 0:00:16.8]} 43. R8c5+ {[%clk
0:00:32.2]} 43... Ke4 {[%clk 0:00:16.5]} 44. Rxa5 {[%clk 0:00:33.1]} 44... Kxf5
{[%clk 0:00:13.6]} 45. Rac5 {[%clk 0:00:31.8]} 45... Bh4+ {[%clk 0:00:13.5]} 0-1

[Event "Early-Titled-Tuesday-Blitz-May-07-2024"]
[Site "Chess.com"]
[Date "2024.05.07"]
[Round "2"]
[White "Arteler"]
[Black "biveklama"]
[Result "0-1"]
[WhiteElo "2339"]
[BlackElo "2538"]
[TimeControl "180+1"]
[EndTime "8:19:59 PDT"]
[Termination "biveklama won by checkmate"]

1. e4 {[%clk 0:03:00.9]} 1... e5 {[%clk 0:02:57.6]} 2. Nf3 {[%clk 0:03:01.2]}
2... Nc6 {[%clk 0:02:57.6]} 3. d4 {[%clk 0:03:01.7]} 3... exd4 {[%clk
0:02:57.4]} 4. Nxd4 {[%clk 0:03:02.6]} 4... Bc5 {[%clk 0:02:55.8]} 5. Nxc6
{[%clk 0:03:03]} 5... bxc6 {[%clk 0:02:56.1]} 6. Bd3 {[%clk 0:03:02.6]} 6... Nf6
{[%clk 0:02:52]} 7. O-O {[%clk 0:03:02.3]} 7... d6 {[%clk 0:02:44.7]} 8. Nd2
{[%clk 0:02:55.4]} 8... O-O {[%clk 0:02:40.2]} 9. Kh1 {[%clk 0:02:55]} 9... Re8
{[%clk 0:02:36.2]} 10. f4 {[%clk 0:02:53]} 10... Ng4 {[%clk 0:02:25.4]} 11. Qe2
{[%clk 0:02:28.1]} 11... Qh4 {[%clk 0:02:09.8]} 12. g3 {[%clk 0:02:19.1]} 12...
Qh3 {[%clk 0:02:01.2]} 13. Nf3 {[%clk 0:02:05.6]} 13... f5 {[%clk 0:01:33.5]}
14. Ng5 {[%clk 0:01:51.8]} 14... Qh6 {[%clk 0:01:18.6]} 15. Bc4+ {[%clk
0:01:51.3]} 15... d5 {[%clk 0:01:15.8]} 16. Bb3 {[%clk 0:01:40]} 16... fxe4
{[%clk 0:00:47.7]} 17. f5 {[%clk 0:01:30.5]} 17... Qh5 {[%clk 0:00:24.8]} 18.
Rf4 {[%clk 0:00:27.2]} 18... Nf6 {[%clk 0:00:23.8]} 19. Qxh5 {[%clk 0:00:26.7]}
19... Nxh5 {[%clk 0:00:24.7]} 20. Rxe4 {[%clk 0:00:27.4]} 20... Bxf5 {[%clk
0:00:20.5]} 21. Rxe8+ {[%clk 0:00:24.9]} 21... Rxe8 {[%clk 0:00:21.4]} 22. Bd2
{[%clk 0:00:24.5]} 22... Re2 {[%clk 0:00:20]} 23. Bc3 {[%clk 0:00:19.3]} 23...
h6 {[%clk 0:00:19.1]} 24. Nf3 {[%clk 0:00:17.8]} 24... Be4 {[%clk 0:00:18.9]}
25. Rf1 {[%clk 0:00:16.1]} 25... Bf2 {[%clk 0:00:16.4]} 26. Kg2 {[%clk
0:00:09.5]} 26... Bxg3+ {[%clk 0:00:16.8]} 27. Kh3 {[%clk 0:00:09.6]} 27... Bd6
{[%clk 0:00:17]} 28. Ne1 {[%clk 0:00:05.6]} 28... Nf4+ {[%clk 0:00:15.8]} 29.
Kg4 {[%clk 0:00:05.9]} 29... Ne6 {[%clk 0:00:14.3]} 30. Ng2 {[%clk 0:00:03.8]}
30... Kh7 {[%clk 0:00:14.1]} 31. Nf4 {[%clk 0:00:04]} 31... Nxf4 {[%clk
0:00:14.1]} 32. Bd4 {[%clk 0:00:03.9]} 32... Rg2+ {[%clk 0:00:13.5]} 33. Kh4
{[%clk 0:00:03.6]} 33... g5# {[%clk 0:00:13.8]} 0-1

[Event "Early-Titled-Tuesday-Blitz-May-07-2024"]
[Site "Chess.com"]
[Date "2024.05.07"]
[Round "2"]
[White "UF_10"]
[Black "BeautiFullMindChess"]
[Result "1-0"]
[WhiteElo "2503"]
[BlackElo "2269"]
[TimeControl "180+1"]
[EndTime "8:20:00 PDT"]
[Termination "UF_10 won by checkmate"]

1. d4 {[%clk 0:03:00.9]} 1... d5 {[%clk 0:02:52.6]} 2. Nf3 {[%clk 0:03:00.3]}
2... Nf6 {[%clk 0:02:51.8]} 3. Bf4 {[%clk 0:03:01]} 3... c5 {[%clk 0:02:50]} 4.
e3 {[%clk 0:03:01.4]} 4... e6 {[%clk 0:02:50.5]} 5. c3 {[%clk 0:02:55.8]} 5...
Nc6 {[%clk 0:02:50.1]} 6. Nbd2 {[%clk 0:02:55.2]} 6... Bd6 {[%clk 0:02:34.3]} 7.
Bg5 {[%clk 0:02:52.2]} 7... h6 {[%clk 0:02:32.9]} 8. Bh4 {[%clk 0:02:51.9]} 8...
O-O {[%clk 0:02:29.5]} 9. Bb5 {[%clk 0:02:49]} 9... Bd7 {[%clk 0:02:26.5]} 10.
Bxc6 {[%clk 0:02:43.3]} 10... bxc6 {[%clk 0:02:25.5]} 11. O-O {[%clk 0:02:44.2]}
11... cxd4 {[%clk 0:02:25.7]} 12. exd4 {[%clk 0:02:33.8]} 12... c5 {[%clk
0:02:24.9]} 13. Ne5 {[%clk 0:02:33.1]} 13... cxd4 {[%clk 0:02:23.8]} 14. Bxf6
{[%clk 0:02:15.2]} 14... gxf6 {[%clk 0:02:20.4]} 15. Nxd7 {[%clk 0:02:12.9]}
15... Qxd7 {[%clk 0:02:20.1]} 16. Qg4+ {[%clk 0:02:13.5]} 16... Kh7 {[%clk
0:02:18.8]} 17. Qxd4 {[%clk 0:02:13.6]} 17... f5 {[%clk 0:01:55]} 18. Nf3 {[%clk
0:02:10.8]} 18... Rg8 {[%clk 0:01:54.2]} 19. Rfe1 {[%clk 0:02:06.2]} 19... Rg4
{[%clk 0:01:50.2]} 20. Qd3 {[%clk 0:02:05.5]} 20... Rag8 {[%clk 0:01:25.2]} 21.
g3 {[%clk 0:02:05.7]} 21... Qc7 {[%clk 0:01:14.5]} 22. Kf1 {[%clk 0:02:05.9]}
22... Kh8 {[%clk 0:01:05.7]} 23. Rac1 {[%clk 0:01:50.4]} 23... f4 {[%clk
0:00:59.7]} 24. Ke2 {[%clk 0:01:50.5]} 24... fxg3 {[%clk 0:00:58.7]} 25. hxg3
{[%clk 0:01:51.4]} 25... Re4+ {[%clk 0:00:58]} 26. Kd1 {[%clk 0:01:51.1]} 26...
Rxe1+ {[%clk 0:00:53.4]} 27. Kxe1 {[%clk 0:01:48.5]} 27... Rg4 {[%clk
0:00:46.4]} 28. Kd2 {[%clk 0:01:43.6]} 28... Qb6 {[%clk 0:00:38.9]} 29. Qe3
{[%clk 0:01:36.1]} 29... Qxb2+ {[%clk 0:00:38.3]} 30. Rc2 {[%clk 0:01:36.2]}
30... Qb6 {[%clk 0:00:19.3]} 31. Qxh6+ {[%clk 0:01:34.6]} 31... Kg8 {[%clk
0:00:19.2]} 32. Ke2 {[%clk 0:01:14.6]} 32... Bf8 {[%clk 0:00:17.5]} 33. Qd2
{[%clk 0:01:06.8]} 33... Re4+ {[%clk 0:00:13.2]} 34. Kf1 {[%clk 0:01:07.1]}
34... Bg7 {[%clk 0:00:11.6]} 35. Kg2 {[%clk 0:01:02.9]} 35... Qc6 {[%clk
0:00:11]} 36. Ng5 {[%clk 0:01:01.5]} 36... Rc4 {[%clk 0:00:10.4]} 37. Qd3 {[%clk
0:01:02.1]} 37... d4+ {[%clk 0:00:09.8]} 38. Kg1 {[%clk 0:00:54]} 38... Rxc3
{[%clk 0:00:10.2]} 39. Qh7+ {[%clk 0:00:51.5]} 39... Kf8 {[%clk 0:00:10.4]} 40.
Qh5 {[%clk 0:00:51]} 40... Qc7 {[%clk 0:00:06.5]} 41. Rb2 {[%clk 0:00:44.8]}
41... Rc1+ {[%clk 0:00:05.9]} 42. Kh2 {[%clk 0:00:44.8]} 42... Rc2 {[%clk
0:00:03.2]} 43. Rb8+ {[%clk 0:00:44.4]} 43... Ke7 {[%clk 0:00:02]} 44. Qxf7+
{[%clk 0:00:44.7]} 44... Kd6 {[%clk 0:00:02.1]} 45. Qxe6+ {[%clk 0:00:44.5]}
45... Kc5 {[%clk 0:00:02]} 46. Ne4# {[%clk 0:00:42.4]} 1-0

[Event "Early-Titled-Tuesday-Blitz-May-07-2024"]
[Site "Chess.com"]
[Date "2024.05.07"]
[Round "2"]
[White "Lestofante90"]
[Black "cristianserban1"]
[Result "1-0"]
[WhiteElo "2964"]
[BlackElo "2627"]
[TimeControl "180+1"]
[EndTime "8:20:01 PDT"]
[Termination "Lestofante90 won by checkmate"]

1. d4 {[%clk 0:02:56.1]} 1... Nf6 {[%clk 0:02:59.4]} 2. Nf3 {[%clk 0:02:55.1]}
2... d5 {[%clk 0:02:59.5]} 3. c4 {[%clk 0:02:46.8]} 3... e6 {[%clk 0:02:59.5]}
4. Nc3 {[%clk 0:02:44.6]} 4... Bb4 {[%clk 0:02:59.1]} 5. Qa4+ {[%clk 0:02:35.1]}
5... Nc6 {[%clk 0:02:59.1]} 6. Qc2 {[%clk 0:02:33.8]} 6... dxc4 {[%clk
0:02:45.8]} 7. e3 {[%clk 0:02:29.8]} 7... b5 {[%clk 0:02:41.9]} 8. a4 {[%clk
0:02:29.7]} 8... Ba6 {[%clk 0:01:58.5]} 9. axb5 {[%clk 0:02:17.2]} 9... Bxb5
{[%clk 0:01:59.4]} 10. Be2 {[%clk 0:02:08.7]} 10... O-O {[%clk 0:01:53.4]} 11.
O-O {[%clk 0:02:08.4]} 11... a6 {[%clk 0:01:53.7]} 12. Na2 {[%clk 0:01:23.2]}
12... Qd5 {[%clk 0:01:45.5]} 13. Nd2 {[%clk 0:01:17.4]} 13... Bxd2 {[%clk
0:01:02.1]} 14. Bxd2 {[%clk 0:01:17.4]} 14... e5 {[%clk 0:01:02.5]} 15. Bf3
{[%clk 0:01:05.5]} 15... e4 {[%clk 0:00:54.2]} 16. Be2 {[%clk 0:01:05.5]} 16...
Nd7 {[%clk 0:00:51.4]} 17. Nc3 {[%clk 0:01:02.5]} 17... Qg5 {[%clk 0:00:41.4]}
18. Qxe4 {[%clk 0:00:54.1]} 18... Rfe8 {[%clk 0:00:25.4]} 19. Qd5 {[%clk
0:00:54.1]} 19... Qxd5 {[%clk 0:00:03.7]} 20. Nxd5 {[%clk 0:00:54.1]} 20... Rec8
{[%clk 0:00:04.6]} 21. Rfc1 {[%clk 0:00:48.1]} 21... Nb6 {[%clk 0:00:04.8]} 22.
Bf3 {[%clk 0:00:36.3]} 22... Rab8 {[%clk 0:00:04]} 23. h4 {[%clk 0:00:28.5]}
23... f6 {[%clk 0:00:03.7]} 24. Nc3 {[%clk 0:00:26.5]} 24... Ne7 {[%clk
0:00:02.9]} 25. e4 {[%clk 0:00:22.9]} 25... c6 {[%clk 0:00:02.4]} 26. Be3 {[%clk
0:00:21.2]} 26... Kf7 {[%clk 0:00:02.6]} 27. h5 {[%clk 0:00:21.2]} 27... g6
{[%clk 0:00:02.5]} 28. g4 {[%clk 0:00:20.8]} 28... Nd7 {[%clk 0:00:02.3]} 29.
Kg2 {[%clk 0:00:19.7]} 29... c5 {[%clk 0:00:02.8]} 30. hxg6+ {[%clk 0:00:18]}
30... hxg6 {[%clk 0:00:02.7]} 31. Rh1 {[%clk 0:00:18.7]} 31... Kg7 {[%clk
0:00:03.3]} 32. d5 {[%clk 0:00:12.2]} 32... Ne5 {[%clk 0:00:03.5]} 33. g5 {[%clk
0:00:12.9]} 33... Nxf3 {[%clk 0:00:02.9]} 34. Kxf3 {[%clk 0:00:12.8]} 34... f5
{[%clk 0:00:03]} 35. Bf4 {[%clk 0:00:12.6]} 35... fxe4+ {[%clk 0:00:03.2]} 36.
Nxe4 {[%clk 0:00:13.5]} 36... Rf8 {[%clk 0:00:03.5]} 37. Nf6 {[%clk 0:00:13.5]}
37... Rbd8 {[%clk 0:00:03.2]} 38. Rh7# {[%clk 0:00:10.9]} 1-0

[Event "Early-Titled-Tuesday-Blitz-May-07-2024"]
[Site "Chess.com"]
[Date "2024.05.07"]
[Round "2"]
[White "vladgoncharov"]
[Black "Witik"]
[Result "0-1"]
[WhiteElo "2589"]
[BlackElo "2871"]
[TimeControl "180+1"]
[EndTime "8:20:02 PDT"]
[Termination "Witik won by resignation"]

1. d4 {[%clk 0:03:00.9]} 1... Nf6 {[%clk 0:02:58]} 2. c4 {[%clk 0:02:59.8]} 2...
e6 {[%clk 0:02:57.6]} 3. Nc3 {[%clk 0:02:59.4]} 3... Bb4 {[%clk 0:02:57.4]} 4.
Qc2 {[%clk 0:02:59.4]} 4... c5 {[%clk 0:02:57.2]} 5. dxc5 {[%clk 0:02:57.6]}
5... Qc7 {[%clk 0:02:57.4]} 6. Nf3 {[%clk 0:02:40.4]} 6... Bxc5 {[%clk
0:02:53.4]} 7. e3 {[%clk 0:02:38.3]} 7... a6 {[%clk 0:02:53.2]} 8. Be2 {[%clk
0:02:34.6]} 8... b6 {[%clk 0:02:53.2]} 9. O-O {[%clk 0:02:33.8]} 9... Bb7 {[%clk
0:02:53.8]} 10. a3 {[%clk 0:02:22.6]} 10... Be7 {[%clk 0:02:51.5]} 11. b3 {[%clk
0:02:14.3]} 11... O-O {[%clk 0:02:50.3]} 12. Bb2 {[%clk 0:02:14]} 12... d6
{[%clk 0:02:44.7]} 13. Rac1 {[%clk 0:02:10.9]} 13... Nbd7 {[%clk 0:02:45.2]} 14.
Rfd1 {[%clk 0:02:05.8]} 14... Rac8 {[%clk 0:02:44.2]} 15. b4 {[%clk 0:02:00.9]}
15... Rfe8 {[%clk 0:02:40.4]} 16. Qb3 {[%clk 0:01:46.5]} 16... Qb8 {[%clk
0:02:32.7]} 17. a4 {[%clk 0:01:33.9]} 17... a5 {[%clk 0:01:59.6]} 18. bxa5
{[%clk 0:01:27.5]} 18... bxa5 {[%clk 0:01:55.5]} 19. Nb5 {[%clk 0:01:27]} 19...
Nc5 {[%clk 0:01:53.4]} 20. Qa2 {[%clk 0:01:24.4]} 20... Nfe4 {[%clk 0:01:38.5]}
21. Ba1 {[%clk 0:01:04]} 21... e5 {[%clk 0:01:06]} 22. Nd2 {[%clk 0:00:54.9]}
22... Nf6 {[%clk 0:01:04.9]} 23. Nb1 {[%clk 0:00:54.2]} 23... Qa8 {[%clk
0:00:56.2]} 24. Bf1 {[%clk 0:00:54.4]} 24... d5 {[%clk 0:00:55.8]} 25. N1c3
{[%clk 0:00:49.9]} 25... Red8 {[%clk 0:00:47.7]} 26. cxd5 {[%clk 0:00:43.7]}
26... Nxd5 {[%clk 0:00:47.9]} 27. Nxd5 {[%clk 0:00:33.7]} 27... Bxd5 {[%clk
0:00:48.3]} 28. Bc4 {[%clk 0:00:33.5]} 28... Bxg2 {[%clk 0:00:38.9]} 29. Bxf7+
{[%clk 0:00:32.5]} 29... Kh8 {[%clk 0:00:39.4]} 30. Bxe5 {[%clk 0:00:20.6]}
30... Bf3 {[%clk 0:00:26.6]} 31. Rxd8+ {[%clk 0:00:18.2]} 31... Rxd8 {[%clk
0:00:27.5]} 32. Nd4 {[%clk 0:00:16.8]} 32... Nd3 {[%clk 0:00:22.1]} 33. Rb1
{[%clk 0:00:11.4]} 33... Nxe5 {[%clk 0:00:21.4]} 34. Be6 {[%clk 0:00:09.8]}
34... Qe4 {[%clk 0:00:15.4]} 35. Nxf3 {[%clk 0:00:05.5]} 35... Nxf3+ {[%clk
0:00:15.3]} 36. Kf1 {[%clk 0:00:05.4]} 36... Qxb1+ {[%clk 0:00:15.3]} 37. Qxb1
{[%clk 0:00:04.9]} 37... Nd2+ {[%clk 0:00:15.7]} 38. Ke2 {[%clk 0:00:05.8]}
38... Nxb1 {[%clk 0:00:16]} 0-1

[Event "Early-Titled-Tuesday-Blitz-May-07-2024"]
[Site "Chess.com"]
[Date "2024.05.07"]
[Round "2"]
[White "TenisMaster"]
[Black "KononenkoD"]
[Result "0-1"]
[WhiteElo "2878"]
[BlackElo "2619"]
[TimeControl "180+1"]
[EndTime "8:20:04 PDT"]
[Termination "KononenkoD won on time"]

1. e4 {[%clk 0:03:00.9]} 1... c6 {[%clk 0:02:59.5]} 2. d4 {[%clk 0:03:00.3]}
2... d5 {[%clk 0:03:00.4]} 3. e5 {[%clk 0:03:00.6]} 3... Bf5 {[%clk 0:03:00.1]}
4. Nf3 {[%clk 0:03:01.1]} 4... e6 {[%clk 0:03:00.3]} 5. c3 {[%clk 0:03:01.6]}
5... Ne7 {[%clk 0:02:57.8]} 6. Be2 {[%clk 0:03:01.2]} 6... Nd7 {[%clk
0:02:57.2]} 7. O-O {[%clk 0:03:00.4]} 7... c5 {[%clk 0:02:57.8]} 8. dxc5 {[%clk
0:02:39.6]} 8... Nc6 {[%clk 0:02:40.1]} 9. Nd4 {[%clk 0:02:34.1]} 9... Bxb1
{[%clk 0:02:29.1]} 10. Rxb1 {[%clk 0:02:29.9]} 10... Bxc5 {[%clk 0:02:29.4]} 11.
f4 {[%clk 0:02:14.2]} 11... O-O {[%clk 0:02:20.6]} 12. Be3 {[%clk 0:02:14.1]}
12... Rc8 {[%clk 0:02:19.4]} 13. Kh1 {[%clk 0:02:11.7]} 13... a6 {[%clk
0:02:14.6]} 14. a3 {[%clk 0:02:06.2]} 14... b5 {[%clk 0:02:10.4]} 15. Bd3 {[%clk
0:02:04.8]} 15... Qb6 {[%clk 0:01:43.5]} 16. b4 {[%clk 0:02:03.8]} 16... Bxd4
{[%clk 0:01:43]} 17. cxd4 {[%clk 0:02:04.2]} 17... g6 {[%clk 0:01:40.6]} 18. Qd2
{[%clk 0:01:24.3]} 18... Ne7 {[%clk 0:01:31.4]} 19. g4 {[%clk 0:01:23.3]} 19...
f5 {[%clk 0:01:31.6]} 20. exf6 {[%clk 0:01:20.5]} 20... Nxf6 {[%clk 0:01:30.3]}
21. Qe2 {[%clk 0:01:17.7]} 21... Rc3 {[%clk 0:01:24.2]} 22. f5 {[%clk
0:01:04.6]} 22... exf5 {[%clk 0:01:12.3]} 23. Bd2 {[%clk 0:01:02.2]} 23... Rxd3
{[%clk 0:01:00.1]} 24. Qxd3 {[%clk 0:01:01.9]} 24... Ne4 {[%clk 0:01:00.7]} 25.
Bh6 {[%clk 0:00:58.3]} 25... Rc8 {[%clk 0:00:56.6]} 26. Rbd1 {[%clk 0:00:34.6]}
26... fxg4 {[%clk 0:00:42.8]} 27. Bf4 {[%clk 0:00:32.3]} 27... Nf5 {[%clk
0:00:37.8]} 28. Be5 {[%clk 0:00:32.3]} 28... Rc3 {[%clk 0:00:36.8]} 29. Qe2
{[%clk 0:00:32.3]} 29... g3 {[%clk 0:00:36.5]} 30. Rc1 {[%clk 0:00:18.3]} 30...
Re3 {[%clk 0:00:19.7]} 31. Qc2 {[%clk 0:00:07.8]} 31... Rc3 {[%clk 0:00:17.1]}
32. Qe2 {[%clk 0:00:04.5]} 32... Qc6 {[%clk 0:00:11.6]} 33. Rxc3 {[%clk
0:00:03.1]} 33... Qxc3 {[%clk 0:00:12.2]} 34. Qg4 {[%clk 0:00:01.5]} 34... Nf2+
{[%clk 0:00:10]} 35. Rxf2 {[%clk 0:00:01.4]} 35... Qe1+ {[%clk 0:00:10.2]} 0-1